Cogmind - Beta 16 @@@ ROGUE MODE // 2025.11.26 @ 21:09:05 Player: Skysub Result: Self-destructed Performance ------------- Evolutions (1) 500 Regions Visited (2) 400 Robots Destroyed (0) 0 Value Destroyed (0) 0 Prototype IDs (1) 20 Alien Tech Used (0) 0 Bonus (200) 200 TOTAL SCORE: 1120 Bonus ------- Pacifist 200 Cogmind --------- Core Integrity 365/400 Matter 136/300 Energy 98/100 System Corruption 0% Temperature Cool (0) Movement Hovering (120) Ox1 Location -9/Materials Parts ------- > --- POWER (1) -------- (None) > --- PROPULSION (3) --- Hover Unit > --- UTILITY (3) ------ Cooling System Light Armor Plating > --- WEAPON (2) ------- Hammer > --- INVENTORY (5) ---- Light Ion Engine Propulsion Shielding Propulsion Shielding Light Armor Plating Peak State ------------ > --- POWER ------------ Light Ion Engine > --- PROPULSION ------- Hover Unit Hover Unit Hover Unit > --- UTILITY ---------- Cooling System Light Armor Plating Light Armor Plating > --- WEAPON ----------- Hammer > --- INVENTORY -------- Light Ion Engine [Rating: 9] Favorites ----------- Power Light Ion Engine Engine Light Ion Engine Propulsion Hover Unit Hover Unit Hover Unit Flight Unit Improved Flight Unit Utility Light Armor Plating Device Cooling System Protection Light Armor Plating Weapon Hammer Impact Weapon Hammer Build | -11 -10 -9 ------- Run | Yrd Mat Mat Slots Evolved 2 | . . 2 Power . | . . . Propulsion 1 | . . 1 Utility 1 | . . 1 Weapon . | . . . Parts Attached 11 | . 2 9 Power 1 | . . 1 Engine 1 | . . 1 Core . | . . . Reactor . | . . . Propulsion 6 | . 2 4 Treads . | . . . Leg . | . . . Wheel . | . . . Hover 5 | . 2 3 Flight 1 | . . 1 Utility 3 | . . 3 Device 1 | . . 1 Storage . | . . . Processor . | . . . Hackware . | . . . Protection 2 | . . 2 Artifact . | . . . Weapon 1 | . . 1 Energy Gun . | . . . Energy Cannon . | . . . Ballistic Gun . | . . . Ballistic Cannon . | . . . Launcher . | . . . Special Weapon . | . . . Impact Weapon 1 | . . 1 Slashing Weapon . | . . . Piercing Weapon . | . . . Special Melee Weapon . | . . . Unidentified Prototypes 1 | . . 1 Parts Lost 5 | . 1 4 Power 1 | . . 1 Propulsion 3 | . 1 2 Utility 1 | . . 1 Weapon . | . . . Highest Loss Streak 4 | . 1 4 To Critical Strikes . | . . . Average Backups 3 | 1 3 3 Power 1 | 1 2 1 Propulsion . | . 1 . Utility . | . . 1 Weapon . | . . . Tool/Special . | . . . Unused Backups 4 | . . 4 Power 1 | . . 1 Propulsion . | . . . Utility 3 | . . 3 Weapon . | . . . Tool/Special . | . . . Average Slot Usage (%) 39 | . 16 54 Engine 3 | . . 5 Hover 21 | . 16 25 Device 3 | . . 6 Protection 6 | . . 11 Impact Weapon 3 | . . 6 Peak Build Rating 9 | . 2 9 Average Rating 3 | . 1 5 On Entrance . | . . 1 Avg Prop Armor Cover (%) 32 | . 28 34 Naked Turns 16 | . 16 . Heaviest Build 13 | . . 13 Greatest Support 18 | 3 12 18 Greatest Overweight (x) . | . . . Average Overweight (x) . | . . . Largest Inventory Capacity 5 | 5 5 5 Average Capacity 5 | 5 5 5 Most Carried 5 | 2 5 5 Average Carried 3 | 1 3 3 Final Capacity 5 | 5 5 5 Final Carried 5 | 2 5 4 Class Distribution -------------------- 100% | Mutant Dominant Class ---------------- Mutant | -10/Materials Mutant | -9/Materials Resources | -11 -10 -9 ----------- Run | Yrd Mat Mat Matter Collected 121 | 121 . . Remotely . | . . . Salvage Created . | . . . Parts . | . . . Haulers Intercepted . | . . . Recyclers Shooed . | . . . Parts Field Recycled . | . . . Retrieved Matter . | . . . Parts Self-Destructed . | . . . Prevented . | . . . Parts Restored . | . . . Kills | -11 -10 -9 ------- Run | Yrd Mat Mat Combat Hostiles Destroyed . | . . . Classes Destroyed . | . . . Best Kill Streak . | . . . Combat Bots Only . | . . . Max Kills in Single Turn . | . . . Gunslinging . | . . . Exploded . | . . . Melee . | . . . Uniques/NPCs Destroyed . | . . . Combat | -11 -10 -9 -------- Run | Yrd Mat Mat Hostile Shots Fired 44 | . 11 33 Missed 13 | . 4 9 Hits 31 | . 7 24 Projectile 31 | . 7 24 Critical Strikes 2 | . . 2 Damage Taken 436 | . 78 358 Core 58 | . 23 35 Absorbed by Shields . | . . . Core Remaining (%) 95 | 100 90 . Volleys Fired . | . . . Largest . | . . . Hottest . | . . . Shots Fired . | . . . Gun . | . . . Cannon . | . . . Launcher . | . . . Special . | . . . Kinetic . | . . . Thermal . | . . . Explosive . | . . . Electromagnetic . | . . . Robot Hit Streak . | . . . Robot Miss Streak . | . . . Penetration Max . | . . . Secondary Targets . | . . . Shots Hit Robots 8 | . . 8 Core Hits . | . . . Critical Kills . | . . . Critical Parts Destroyed . | . . . Critical Strikes . | . . . Melee Attacks 10 | . . 10 Impact 10 | . . 10 Slashing . | . . . Piercing . | . . . Sneak Attacks . | . . . Combat Hostiles . | . . . Follow-up Attacks . | . . . Damage Inflicted 154 | . . 154 Guns . | . . . Cannons . | . . . Explosions . | . . . Melee 154 | . . 154 Ramming . | . . . Kinetic . | . . . Thermal . | . . . Explosive . | . . . Electromagnetic . | . . . Impact 154 | . . 154 Slashing . | . . . Piercing . | . . . Highest Corruption . | . . . Average Corruption . | . . . Corruption Purged . | . . . Corruption Blocked . | . . . Overload Shots . | . . . Overflow Damage . | . . . Projectiles . | . . . Explosions . | . . . Melee . | . . . Knockbacks . | . . . Impact . | . . . Kinetic . | . . . Secondary . | . . . Self-Inflicted Damage . | . . . Shots . | . . . Rammed . | . . . Targets Rammed . | . . . Kicked . | . . . Crushed . | . . . Highest Temperature 437 | . . 437 Average Temperature 227 | . . 227 Received Heat Transfer 243 | . 42 201 Siege Activations . | . . . Martial Activations . | . . . Shielding Activations . | . . . Robots Disrupted . | . . . Combat Hostiles . | . . . Robots Corrupted . | . . . Combat Hostiles . | . . . Parts Fried . | . . . Impact Corruptions . | . . . Robots Melted . | . . . Combat Hostiles . | . . . Parts Melted . | . . . Heat Transferred . | . . . Parts Sabotaged . | . . . Parts Stolen . | . . . Parts Stripped . | . . . Power Chain Reactions . | . . . Alert | -11 -10 -9 ------- Run | Yrd Mat Mat Maximum Alert Level . | . . . Low Security (%) 100 | 100 100 100 Level 1 . | . . . Level 2 . | . . . Level 3 . | . . . Level 4 . | . . . Level 5 . | . . . High Security . | . . . Max Security . | . . . Peak Influence 15 | . 9 15 Initial . | . . . Average 1 | . 1 2 Influence Increases 24 | . 9 15 Successful Hack 9 | . 9 . Partial Spotted 15 | . . 15 Influence Decreases 24 | . 9 15 Time Decay 19 | . 9 10 Lost Part 5 | . . 5 Squads Dispatched 2 | . . 2 Investigation . | . . . Extermination . | . . . Reinforcement 2 | . . 2 Assault . | . . . Garrison . | . . . Intercept . | . . . Searches Triggered . | . . . Construction Impeded . | . . . Haulers Reinforced . | . . . Active Scanning Responses . | . . . Cargo Convoy Interrupts . | . . . Stealth | -11 -10 -9 --------- Run | Yrd Mat Mat Distress Signals . | . . . Communications Jammed . | . . . Distress Signals . | . . . Times Spotted 12 | . 5 7 Peak Tracking Total 5 | . 5 5 Tactical Retreats . | . . . Traps | -11 -10 -9 ------- Run | Yrd Mat Mat Traps Triggered . | . . . Indirectly . | . . . Trap Hack Attempts . | . . . Triggered . | . . . Disarmed . | . . . Reprogrammed . | . . . Reused . | . . . Traps Extracted . | . . . Installed . | . . . Triggered . | . . . Machines | -11 -10 -9 ---------- Run | Yrd Mat Mat Machines Disabled . | . . . Max in Single Turn . | . . . Machines Repaired . | . . . Machines Dismantled . | . . . Machines Sabotaged . | . . . Overloaded Fab Kills . | . . . Hacking | -11 -10 -9 --------- Run | Yrd Mat Mat Machines Accessed 1 | . 1 . Terminals 1 | . 1 . Fabricators . | . . . Repair Stations . | . . . Recycling Units . | . . . Scanalyzers . | . . . Garrison Access . | . . . Total Hacks 2 | . 2 . Successful 2 | . 2 . Failed . | . . . Catastrophic . | . . . Database Lockouts . | . . . Manual 2 | . 2 . Terminals 2 | . 2 . Fabricators . | . . . Repair Stations . | . . . Recycling Units . | . . . Scanalyzers . | . . . Garrison Access . | . . . Terminal Hacks 1 | . 1 . Level Access Points 1 | . 1 . Fabricator Hacks . | . . . Repair Station Hacks . | . . . Recycling Unit Hacks . | . . . Scanalyzer . | . . . Garrison Access Hacks . | . . . Unauthorized Hacks 1 | . 1 . Terminals 1 | . 1 . Botnet 1 | . 1 . Fabricators . | . . . Repair Stations . | . . . Recycling Units . | . . . Scanalyzers . | . . . Garrison Access . | . . . Data Cores Recovered . | . . . Used . | . . . Hacking Detections . | . . . Full Trace Events . | . . . Feedback Events . | . . . Feedback Blocked . | . . . Robot Schematics Acquired . | . . . Robots Built . | . . . Authchips . | . . . Time . | . . . Total Robot Build Rating . | . . . Part Schematics Acquired . | . . . Parts Built . | . . . Authchips . | . . . Time . | . . . Total Part Build Rating . | . . . Part Studies Acquired . | . . . Parts Repaired . | . . . Time . | . . . Parts Recycled . | . . . Recycled Matter . | . . . Retrieved Matter . | . . . Retrieved Components . | . . . Parts Scanalyzed . | . . . Part Schematics Acquired . | . . . Parts Damaged . | . . . Bothacking | -11 -10 -9 ------------ Run | Yrd Mat Mat Used RIF Installer . | . . . Robots Hacked . | . . . Non-combat . | . . . Combat . | . . . Robot Hacks Applied . | . . . Relay Couplers Released . | . . . Fabnet Peak Effective % . | . . . Robots Rewired . | . . . Allies Hacked . | . . . Hacks Repelled . | . . . Allies | -11 -10 -9 -------- Run | Yrd Mat Mat Total Allies . | . . . Largest Group . | . . . Highest-Rated Group . | . . . Highest-Rated Ally . | . . . Total Orders . | . . . Ally Attacks . | . . . Total Damage . | . . . Kills . | . . . Allies Corrupted . | . . . Allies Melted . | . . . Intel | -11 -10 -9 ------- Run | Yrd Mat Mat Active Infowar (turns) . | . . . Robot Analysis Total . | . . . Derelict Logs Recovered . | . . . Drone Launches . | . . . Drone Recoveries . | . . . Exploration | -11 -10 -9 ------------- Run | Yrd Mat Mat Turns Passed 172 | 12 59 101 Spaces Moved 230 | 20 100 110 Core 127 | 20 48 59 Treads . | . . . Legs . | . . . Wheels . | . . . Hover 103 | . 52 51 Flight . | . . . Fastest Speed 50 | 50 50 50 Average Speed 51 | 50 53 50 Slowest Speed 60 | 50 60 52 Overloaded Moves . | . . . Propulsion Burnouts . | . . . Robots Hopped . | . . . Potential Cave-ins . | . . . Cave-ins Triggered . | . . . Exploration Rate (%) 18 | 3 36 15 Regions Visited 2 Branch Regions . Pre-discovered Areas . | . . . Known Exits Taken 1 | . 1 . Unknown Exits Taken 1 | 1 . . Scrap Searched . | . . . Spaces Dug . | . . . Terrain Destroyed . | . . . Melee . | . . . Projectile . | . . . AOE . | . . . Terrain Rammed . | . . . Walls Destroyed . | . . . Machines Disabled . | . . . Actions | -11 -10 -9 --------- Run | Yrd Mat Mat Total 261 | 21 104 136 Wait . | . . . Move 228 | 19 99 110 Hop . | . . . Pick Up 10 | 2 3 5 Fast Attach 4 | . 2 2 Attach 6 | . . 6 Detach 1 | . . 1 Swap 1 | . . 1 Drop 1 | . . 1 Fire . | . . . Melee 10 | . . 10 Ram . | . . . Kick . | . . . Crush . | . . . Escape Stasis . | . . . Rewire . | . . . Trap . | . . . Miscellaneous . | . . . Route ------- -11/Scrapyard -10/Materials (discovered 5 exits: *Mat x3 / [*Min x2]) -9/Materials History --------- Turn | Location | Event 6 | -11/Scrapyard | Discovered new exit (range 15) 13 | -11/Scrapyard | Entered Materials 20 | -10/Materials | Identified exit to Materials 28 | -10/Materials | Discovered new exit (range 16) 58 | -10/Materials | Discovered new exit (range 15) 72 | -10/Materials | Entered another Materials area 72 | -9/Materials | Evolved 2 slots: Propulsion x1, Utility x1 173 | -9/Materials | Self-destructed Last Messages --------------- 00093_ Acquired Hammer. 00094_ R-06 Scavenger collects Faulty Imp. Flight Unit. 00098_ O-16 Technician: "IFF HANDSHAKE FAILED. SECURING TERMINAL." 00098_ O-16 Technician uses terminal to summon reinforcements. 00098_ ALERT: Hostiles spotted, dispatching reinforcements to Terminal M002. 00098_ O-16 Technician locks terminal. 00104_ T-07 Excavator is excavating. 00107_ Acquired Lgt. Armor Plating. 00113_ Acquired Cooling System. 00116_ Acquired Lgt. Armor Plating. 00122_ O-16 Technician: "IFF HANDSHAKE FAILED. SECURING TERMINAL." 00125_ ALERT: Hostiles spotted, dispatching reinforcements to Terminal M009. 00126_ Acquired Propulsion Shielding. 00152_ Hover Unit destroyed. 00165_ Lgt. Armor Plating destroyed. 00167_ Critical hit (Burn: +37). 00169_ Lgt. Ion Engine destroyed. 00170_ Critical hit (Burn: +37). Map ----- +----------------------------------------------------+ | ??????????????????????????????????????????????? | | ??????????????????????????????????????????????? | | ??????????????????????????????????????????????? | | ??????????????????????????????????????????????? | | ??????????????????????????????????????????????? | | ??????????????????????????????????????????????? | | ??????????????????????????????????????????????? | | ??????????????????????????????????????????????? | | ??????????????????????????????????????????????? | | ??????????????????????????????????????????????? | | ??????????????????????????????????????????????? | | ??????????????????????????????????????????????? | | ??????????????????????????????????????????????? | | ??????????????????????????????????????????????? | | ??????????????????????????????????????????????? | | ??????????????????????????????????????????????? | | ?????????????????????#+#??????????????????????? | | ????????????????????? ??????????????????????? | | ????????????????????? ??????????????????????? | | ?????????????????????= ??????????????????????? | | ?????????????????????# #??????????????????????? | | ?????????###?????????#u#??????????????????????? | | ?????????# ?? #????#k#??????????????????????? | | ?????????# "?? #????#g#??????????????????????? | | ?????????# """ #????#Y#??????????????????????? | | ?????????# """ #????#@#??????????????????????? | | ?????????# #????# #??????????????????????? | | ?????????# """ #????# #??????????????????????? | | ?????????# """ #????#w#??????????????????????? | | ?????????# """ #????#g#??????????????????????? | | ?????????# #????#g#??????????????????????? | | ???####??# !! #????# #??????????????????????? | | ??? ??# ! #????# #??????????????????????? | | ???"""" ?# ! #????# #???######?????????????? | | ? """"" ?# #??### ###? #?????????????? | | # """"" [#+#+####### # #?????????????? | | # # # #?????????????? | | #"" + T + #?????????????? | | #"T # # #?????????????? | | #"" ### ####### # #?????????????? | | # ???# #?????#######?######?????????????? | | ?###########+##???????????????????????????????? | | ?????# #???????????????????????????????? | | ?????# #???????????????????????????????? | | ?????# ! #???????????????????????????????? | | ?????# !! #???????????????????????????????? | | ?????# ! #?###########???????????????????? | | ?????# #?# #???????????????????? | | ?????# #?# #???????????????????? | | ?????# #?# #???????????????????? | +----------------------------------------------------+ Best States ------------- Heat Dissipation 50 Energy Generation 10 Energy Capacity 125 Matter Stores 221 Matter Capacity 300 Sight Range 16 Terrain Scan Density 10 Armor Coverage 300 Evasion (%) 54 Item Schematics ----------------- None Robot Schematics ------------------ None Fabricated ------------ Nothing Repaired ---------- Nothing Studied --------- None Alien Tech Used ----------------- None Achievements -------------- None Challenges ------------ None Game ------ Seed RapidElectrostormWall Manual? 0 Play Time 00:02:48 Cumulative 290.4 hours Start 2025.11.26 @ 21:07:17 End 2025.11.26 @ 21:09:05 Sessions 1 Manual Loads 0 Difficulty Rogue Special Mode None Game No. 340 Rogue 340 Adventurer 0 Explorer 0 Win Type - Total 18 Types 11/0/3/1/1/0/0/1/0/1 Lore% 77 Gallery% 75 Achievement% 57 Wizard Run 0 Options --------- Layout 1 ASCII 0 Keyboard 1 Movement Numpad Keybinds 0 Fullscreen 0 Font 32/SmallcapsGlow Map View 77x35 Zoom Use 0% Tactical HUD 1 Map Filters NONE Filters NONE Steam 1 RUN: 98be423b-45b6-4104-a821-29422841a93c